[Event "Titled Tuesday Blitz June 28 Early 2022"]
[White "Espinosa Veloz, Ermes"]
[Black "Bolanos, Fernando"]
[WhiteFideId "3507424"]
[BlackFideId "3304094"]
[WhiteElo "2333"]
[BlackElo "2048"]
[Result "1-0"]
[Round "02"]
[TimeControl "180+1"]
[Date "2022.06.28"]
[WhiteClock "0:00:13"]
[BlackClock "0:00:04"]

1. e4 {[%clk 0:03:00]}  c5 {[%clk 0:02:59]} 2. Nf3 {[%clk 0:03:00]}  e6 {[%clk 0:02:59]} 3. g3 {[%clk 0:02:59]}  Qc7 {[%clk 0:02:57]} 4. Bg2 {[%clk 0:02:58]}  Nc6 {[%clk 0:02:57]} 5. O-O {[%clk 0:02:57]}  b5 {[%clk 0:02:57]} 6. a4 {[%clk 0:02:54]}  b4 {[%clk 0:02:57]} 7. d4 {[%clk 0:02:53]}  cxd4 {[%clk 0:02:57]} 8. Nxd4 {[%clk 0:02:54]}  Bb7 {[%clk 0:02:56]} 9. Nb5 {[%clk 0:02:53]}  Qb8 {[%clk 0:02:56]} 10. c3 {[%clk 0:02:38]}  a6 {[%clk 0:02:52]} 11. Nd4 {[%clk 0:02:36]}  Nf6 {[%clk 0:02:36]} 12. Bf4 {[%clk 0:02:33]}  e5 {[%clk 0:02:33]} 13. Nxc6 {[%clk 0:02:33]}  Bxc6 {[%clk 0:02:34]} 14. Bg5 {[%clk 0:02:32]}  Be7 {[%clk 0:02:16]} 15. Nd2 {[%clk 0:02:25]}  O-O {[%clk 0:02:14]} 16. Qe2 {[%clk 0:02:24]}  h6 {[%clk 0:02:13]} 17. Bxf6 {[%clk 0:02:16]}  Bxf6 {[%clk 0:02:14]} 18. Nc4 {[%clk 0:02:17]}  bxc3 {[%clk 0:01:45]} 19. bxc3 {[%clk 0:02:18]}  Qb3 {[%clk 0:01:45]} 20. Ra3 {[%clk 0:02:18]}  Qb7 {[%clk 0:01:42]} 21. f4 {[%clk 0:02:12]}  exf4 {[%clk 0:01:41]} 22. gxf4 {[%clk 0:02:13]}  Be7 {[%clk 0:01:40]} 23. Raa1 {[%clk 0:02:11]}  Rab8 {[%clk 0:01:38]} 24. e5 {[%clk 0:02:00]}  Rfc8 {[%clk 0:01:21]} 25. Ne3 {[%clk 0:01:53]}  Bc5 {[%clk 0:01:19]} 26. Bxc6 {[%clk 0:01:45]}  Rxc6 {[%clk 0:01:13]} 27. Rf3 {[%clk 0:01:42]}  Rg6+ {[%clk 0:01:07]} 28. Kf2 {[%clk 0:01:38]}  Qe4 {[%clk 0:00:57]} 29. Rd1 {[%clk 0:01:28]}  Bxe3+ {[%clk 0:00:46]} 30. Qxe3 {[%clk 0:01:28]}  Rb2+ {[%clk 0:00:46]} 31. Rd2 {[%clk 0:01:27]}  Qb1 {[%clk 0:00:38]} 32. Rg3 {[%clk 0:01:17]}  Rgb6 {[%clk 0:00:23]} 33. Rg1 {[%clk 0:00:57]}  Rxd2+ {[%clk 0:00:23]} 34. Qxd2 {[%clk 0:00:56]}  Qe4 {[%clk 0:00:24]} 35. a5 {[%clk 0:00:45]}  Rb5 {[%clk 0:00:22]} 36. Ra1 {[%clk 0:00:38]}  g6 {[%clk 0:00:20]} 37. Ra2 {[%clk 0:00:38]}  h5 {[%clk 0:00:18]} 38. Qe3 {[%clk 0:00:33]}  Qb1 {[%clk 0:00:15]} 39. Rd2 {[%clk 0:00:33]}  Qh1 {[%clk 0:00:10]} 40. Qh3 {[%clk 0:00:18]}  Rxa5 {[%clk 0:00:11]} 41. Qxd7 {[%clk 0:00:18]}  Qxh2+ {[%clk 0:00:11]} 42. Ke3 {[%clk 0:00:17]}  Qg3+ {[%clk 0:00:11]} 43. Ke4 {[%clk 0:00:15]}  Qxc3 {[%clk 0:00:08]} 44. Qd8+ {[%clk 0:00:14]}  Kg7 {[%clk 0:00:09]} 45. Qf6+ {[%clk 0:00:12]}  Kh7 {[%clk 0:00:04]} 46. Qxf7+ {[%clk 0:00:12]}  Kh6 {[%clk 0:00:05]} 47. Qf8+ {[%clk 0:00:12]}  Kh7 {[%clk 0:00:04]} 48. Qe7+ {[%clk 0:00:11]}  Kh6 {[%clk 0:00:04]} 49. Qg5+ {[%clk 0:00:11]}  Kg7 {[%clk 0:00:04]} 50. Rd7+ {[%clk 0:00:12]}  Kf8 {[%clk 0:00:04]} 51. Qd8# {[%clk 0:00:13]} 1-0


[Site "https://www.chess.com"]

[Event "Titled Tuesday Blitz June 28 Early 2022"]
[White "Garcia, Gabriel Gonzaga"]
[Black "Richter, Nils"]
[WhiteFideId "2138956"]
[BlackFideId "12990809"]
[WhiteElo "2240"]
[BlackElo "2311"]
[Result "0-1"]
[Round "02"]
[TimeControl "180+1"]
[Date "2022.06.28"]
[WhiteClock "0:01:40"]
[BlackClock "0:01:43"]

1. e4 {[%clk 0:03:00]}  e6 {[%clk 0:02:55]} 2. Nf3 {[%clk 0:02:59]}  d5 {[%clk 0:02:55]} 3. Nc3 {[%clk 0:03:00]}  dxe4 {[%clk 0:02:54]} 4. Nxe4 {[%clk 0:03:01]}  Nf6 {[%clk 0:02:54]} 5. Nxf6+ {[%clk 0:03:00]}  Qxf6 {[%clk 0:02:55]} 6. d4 {[%clk 0:03:01]}  Bd6 {[%clk 0:02:54]} 7. Bg5 {[%clk 0:03:00]}  Qg6 {[%clk 0:02:53]} 8. Bd3 {[%clk 0:03:01]}  Qh5 {[%clk 0:02:53]} 9. h3 {[%clk 0:03:02]}  f5 {[%clk 0:02:51]} 10. Qe2 {[%clk 0:02:55]}  O-O {[%clk 0:02:47]} 11. O-O-O {[%clk 0:02:52]}  Nc6 {[%clk 0:02:44]} 12. g4 {[%clk 0:02:51]}  Qf7 {[%clk 0:02:39]} 13. c3 {[%clk 0:02:20]}  h6 {[%clk 0:02:21]} 14. Bd2 {[%clk 0:02:13]}  fxg4 {[%clk 0:02:18]} 15. Ne5 {[%clk 0:02:13]}  Bxe5 {[%clk 0:02:13]} 16. dxe5 {[%clk 0:02:14]}  Qxf2 {[%clk 0:02:03]} 17. Qe4 {[%clk 0:01:46]}  Qf5 {[%clk 0:02:01]} 18. Qc4 {[%clk 0:01:47]}  Nxe5 {[%clk 0:01:55]} 19. Bxf5 {[%clk 0:01:43]}  Nxc4 {[%clk 0:01:53]} 20. Bxg4 {[%clk 0:01:44]}  e5 {[%clk 0:01:47]} 21. Bf3 {[%clk 0:01:40]}  Rxf3 {[%clk 0:01:43]} 0-1


[Site "https://www.chess.com"]

[Event "Titled Tuesday Blitz June 28 Early 2022"]
[White "Gardezi, Arsal"]
[Black "Gormally, Daniel W"]
[WhiteFideId "30949521"]
[BlackFideId "406465"]
[WhiteElo "1781"]
[BlackElo "2543"]
[Result "0-1"]
[Round "02"]
[TimeControl "180+1"]
[Date "2022.06.28"]
[WhiteClock "0:00:49"]
[BlackClock "0:02:18"]

1. e4 {[%clk 0:02:57]}  c5 {[%clk 0:02:59]} 2. Nf3 {[%clk 0:02:57]}  d6 {[%clk 0:03:00]} 3. d4 {[%clk 0:02:57]}  cxd4 {[%clk 0:03:00]} 4. Nxd4 {[%clk 0:02:58]}  Nf6 {[%clk 0:03:01]} 5. Nc3 {[%clk 0:02:58]}  a6 {[%clk 0:03:01]} 6. f3 {[%clk 0:02:59]}  e5 {[%clk 0:03:01]} 7. Nb3 {[%clk 0:02:59]}  Be6 {[%clk 0:03:01]} 8. Be3 {[%clk 0:02:59]}  Be7 {[%clk 0:03:01]} 9. Qd2 {[%clk 0:02:59]}  O-O {[%clk 0:03:02]} 10. O-O-O {[%clk 0:02:37]}  a5 {[%clk 0:03:02]} 11. Bb5 {[%clk 0:02:35]}  Nc6 {[%clk 0:03:01]} 12. Kb1 {[%clk 0:02:27]}  Na7 {[%clk 0:02:51]} 13. Bf1 {[%clk 0:02:01]}  Nc8 {[%clk 0:02:46]} 14. Bb5 {[%clk 0:01:57]}  Nb6 {[%clk 0:02:45]} 15. Qf2 {[%clk 0:01:54]}  Nc4 {[%clk 0:02:43]} 16. Nc5 {[%clk 0:01:46]}  Nxe3 {[%clk 0:02:36]} 17. Qxe3 {[%clk 0:01:42]}  Qb6 {[%clk 0:02:31]} 18. a4 {[%clk 0:01:05]}  Rfc8 {[%clk 0:02:23]} 19. Nd5 {[%clk 0:00:55]}  Bxd5 {[%clk 0:02:21]} 20. exd5 {[%clk 0:00:56]}  Rxc5 {[%clk 0:02:19]} 21. c4 {[%clk 0:00:49]}  Rxb5 {[%clk 0:02:18]} 0-1


[Site "https://www.chess.com"]

[Event "Titled Tuesday Blitz June 28 Early 2022"]
[White "Gatterer, Florian"]
[Black "Nasir, Zehn"]
[WhiteFideId "811688"]
[BlackFideId "2613239"]
[WhiteElo "2218"]
[BlackElo "1993"]
[Result "1-0"]
[Round "02"]
[TimeControl "180+1"]
[Date "2022.06.28"]
[WhiteClock "0:00:24"]
[BlackClock "0:00:05"]

1. d4 {[%clk 0:03:00]}  Nf6 {[%clk 0:03:00]} 2. Nf3 {[%clk 0:02:55]}  e6 {[%clk 0:02:57]} 3. g3 {[%clk 0:02:55]}  c5 {[%clk 0:02:53]} 4. Bg2 {[%clk 0:02:55]}  d5 {[%clk 0:02:53]} 5. O-O {[%clk 0:02:53]}  Nc6 {[%clk 0:02:54]} 6. c4 {[%clk 0:02:53]}  dxc4 {[%clk 0:02:48]} 7. dxc5 {[%clk 0:02:52]}  Qxd1 {[%clk 0:02:47]} 8. Rxd1 {[%clk 0:02:53]}  Bxc5 {[%clk 0:02:46]} 9. Nbd2 {[%clk 0:02:53]}  c3 {[%clk 0:02:43]} 10. bxc3 {[%clk 0:02:54]}  O-O {[%clk 0:02:43]} 11. Nb3 {[%clk 0:02:54]}  Bb6 {[%clk 0:02:42]} 12. Nfd4 {[%clk 0:02:53]}  Bd7 {[%clk 0:02:39]} 13. Nxc6 {[%clk 0:02:51]}  Bxc6 {[%clk 0:02:37]} 14. Bxc6 {[%clk 0:02:47]}  bxc6 {[%clk 0:02:38]} 15. Ba3 {[%clk 0:02:35]}  Rfd8 {[%clk 0:02:37]} 16. c4 {[%clk 0:02:34]}  Ne4 {[%clk 0:02:31]} 17. e3 {[%clk 0:02:31]}  Nc3 {[%clk 0:02:24]} 18. Re1 {[%clk 0:02:21]}  Rd7 {[%clk 0:02:10]} 19. Bb4 {[%clk 0:02:15]}  Ne4 {[%clk 0:02:07]} 20. c5 {[%clk 0:02:07]}  Bc7 {[%clk 0:01:44]} 21. f3 {[%clk 0:02:06]}  Nf6 {[%clk 0:01:42]} 22. e4 {[%clk 0:02:05]}  Rad8 {[%clk 0:01:35]} 23. Kf2 {[%clk 0:01:55]}  Be5 {[%clk 0:01:30]} 24. Rac1 {[%clk 0:01:52]}  h5 {[%clk 0:01:28]} 25. Ke2 {[%clk 0:01:43]}  h4 {[%clk 0:01:24]} 26. f4 {[%clk 0:01:42]}  Bc7 {[%clk 0:01:14]} 27. e5 {[%clk 0:01:33]}  Nd5 {[%clk 0:01:13]} 28. Bd2 {[%clk 0:01:29]}  h3 {[%clk 0:00:58]} 29. Rc4 {[%clk 0:01:28]}  g5 {[%clk 0:00:49]} 30. Ra4 {[%clk 0:01:26]}  Bb8 {[%clk 0:00:49]} 31. Kf3 {[%clk 0:01:22]}  Ne7 {[%clk 0:00:40]} 32. Ba5 {[%clk 0:01:09]}  Rd3+ {[%clk 0:00:33]} 33. Re3 {[%clk 0:01:06]}  Rxe3+ {[%clk 0:00:29]} 34. Kxe3 {[%clk 0:01:06]}  Rd1 {[%clk 0:00:29]} 35. Kf3 {[%clk 0:01:00]}  gxf4 {[%clk 0:00:28]} 36. gxf4 {[%clk 0:00:58]}  Rd3+ {[%clk 0:00:20]} 37. Ke4 {[%clk 0:00:54]}  Rd1 {[%clk 0:00:16]} 38. Rb4 {[%clk 0:00:53]}  Nd5 {[%clk 0:00:12]} 39. Rxb8+ {[%clk 0:00:50]}  Kg7 {[%clk 0:00:13]} 40. Bd8 {[%clk 0:00:47]}  Rh1 {[%clk 0:00:12]} 41. Bf6+ {[%clk 0:00:41]}  Nxf6+ {[%clk 0:00:12]} 42. exf6+ {[%clk 0:00:41]}  Kxf6 {[%clk 0:00:13]} 43. Nd4 {[%clk 0:00:39]}  Rxh2 {[%clk 0:00:12]} 44. Rh8 {[%clk 0:00:38]}  Rh1 {[%clk 0:00:10]} 45. Nxc6 {[%clk 0:00:37]}  h2 {[%clk 0:00:09]} 46. Ne5 {[%clk 0:00:25]}  Re1+ {[%clk 0:00:08]} 47. Kd4 {[%clk 0:00:25]}  h1=Q {[%clk 0:00:08]} 48. Rxh1 {[%clk 0:00:25]}  Rxh1 {[%clk 0:00:09]} 49. c6 {[%clk 0:00:25]}  Rc1 {[%clk 0:00:06]} 50. Nc4 {[%clk 0:00:24]}  Ke7 {[%clk 0:00:05]} 51. Kc5 {[%clk 0:00:24]} 1-0


[Site "https://www.chess.com"]

[Event "Titled Tuesday Blitz June 28 Early 2022"]
[White "Ghazarian, Kirk"]
[Black "Shimanov, Aleksandr"]
[WhiteFideId "30908604"]
[BlackFideId "4198603"]
[WhiteElo "2003"]
[BlackElo "2605"]
[Result "0-1"]
[Round "02"]
[TimeControl "180+1"]
[Date "2022.06.28"]
[WhiteClock "0:00:03"]
[BlackClock "0:00:08"]

1. e4 {[%clk 0:03:00]}  e6 {[%clk 0:02:58]} 2. d4 {[%clk 0:03:00]}  d5 {[%clk 0:02:58]} 3. Bd3 {[%clk 0:03:00]}  dxe4 {[%clk 0:02:54]} 4. Bxe4 {[%clk 0:03:01]}  Nf6 {[%clk 0:02:55]} 5. Bf3 {[%clk 0:03:02]}  c5 {[%clk 0:02:55]} 6. Ne2 {[%clk 0:03:00]}  Nc6 {[%clk 0:02:49]} 7. Be3 {[%clk 0:02:44]}  e5 {[%clk 0:02:47]} 8. Bxc6+ {[%clk 0:02:41]}  bxc6 {[%clk 0:02:45]} 9. dxe5 {[%clk 0:02:32]}  Qxd1+ {[%clk 0:02:44]} 10. Kxd1 {[%clk 0:02:33]}  Ng4 {[%clk 0:02:45]} 11. Nbc3 {[%clk 0:02:25]}  Be6 {[%clk 0:02:35]} 12. Nf4 {[%clk 0:02:12]}  O-O-O+ {[%clk 0:02:24]} 13. Ke1 {[%clk 0:02:12]}  Bf5 {[%clk 0:02:21]} 14. Rc1 {[%clk 0:02:02]}  Re8 {[%clk 0:02:13]} 15. e6 {[%clk 0:01:51]}  Nxe3 {[%clk 0:01:55]} 16. fxe3 {[%clk 0:01:47]}  Bd6 {[%clk 0:01:55]} 17. Rf1 {[%clk 0:01:29]}  fxe6 {[%clk 0:01:53]} 18. h3 {[%clk 0:01:25]}  g5 {[%clk 0:01:46]} 19. Nh5 {[%clk 0:01:17]}  Be5 {[%clk 0:01:38]} 20. Ke2 {[%clk 0:01:09]}  Rhf8 {[%clk 0:01:34]} 21. Na4 {[%clk 0:00:57]}  c4 {[%clk 0:01:30]} 22. b3 {[%clk 0:00:54]}  Bg6 {[%clk 0:01:27]} 23. g4 {[%clk 0:00:54]}  Rxf1 {[%clk 0:01:27]} 24. Kxf1 {[%clk 0:00:50]}  Rd8 {[%clk 0:01:20]} 25. bxc4 {[%clk 0:00:39]}  Rd2 {[%clk 0:01:19]} 26. Nc5 {[%clk 0:00:37]}  Rh2 {[%clk 0:01:15]} 27. Kg1 {[%clk 0:00:28]}  Rxh3 {[%clk 0:01:14]} 28. Kf2 {[%clk 0:00:20]}  Rh2+ {[%clk 0:01:07]} 29. Kf3 {[%clk 0:00:19]}  Rh3+ {[%clk 0:00:55]} 30. Kf2 {[%clk 0:00:19]}  Rh4 {[%clk 0:00:25]} 31. Kf3 {[%clk 0:00:19]}  Bxh5 {[%clk 0:00:19]} 32. gxh5 {[%clk 0:00:19]}  Rxc4 {[%clk 0:00:20]} 33. Nxe6 {[%clk 0:00:19]}  g4+ {[%clk 0:00:20]} 34. Ke2 {[%clk 0:00:18]}  g3 {[%clk 0:00:20]} 35. Kf3 {[%clk 0:00:18]}  Rh4 {[%clk 0:00:20]} 36. Nf4 {[%clk 0:00:17]}  Kc7 {[%clk 0:00:14]} 37. Rg1 {[%clk 0:00:13]}  Rh2 {[%clk 0:00:12]} 38. Rxg3 {[%clk 0:00:04]}  Rxc2 {[%clk 0:00:12]} 39. Rg5 {[%clk 0:00:05]}  Ba1 {[%clk 0:00:12]} 40. Rf5 {[%clk 0:00:04]}  Rxa2 {[%clk 0:00:11]} 41. Rf7+ {[%clk 0:00:04]}  Kb6 {[%clk 0:00:11]} 42. Rxh7 {[%clk 0:00:05]}  Rh2 {[%clk 0:00:11]} 43. Kg3 {[%clk 0:00:04]}  Rh1 {[%clk 0:00:11]} 44. h6 {[%clk 0:00:05]}  a5 {[%clk 0:00:10]} 45. Kg2 {[%clk 0:00:04]}  Re1 {[%clk 0:00:10]} 46. Re7 {[%clk 0:00:03]}  a4 {[%clk 0:00:10]} 47. h7 {[%clk 0:00:03]}  a3 {[%clk 0:00:11]} 48. Re8 {[%clk 0:00:03]}  a2 {[%clk 0:00:11]} 49. Ra8 {[%clk 0:00:03]}  Rxe3 {[%clk 0:00:07]} 50. Rxa2 {[%clk 0:00:03]}  Be5 {[%clk 0:00:08]} 51. Ng6 {[%clk 0:00:03]}  Rg3+ {[%clk 0:00:08]} 0-1


[Site "https://www.chess.com"]

[Event "Titled Tuesday Blitz June 28 Early 2022"]
[White "Guliev, Logman"]
[Black "Magallanes, Rey Jomar"]
[WhiteFideId "13400061"]
[BlackFideId "5205948"]
[WhiteElo "2128"]
[BlackElo "2181"]
[Result "1-0"]
[Round "02"]
[TimeControl "180+1"]
[Date "2022.06.28"]
[WhiteClock "0:00:56"]
[BlackClock "0:00:15"]

1. d4 {[%clk 0:03:00]}  d5 {[%clk 0:02:59]} 2. c4 {[%clk 0:03:00]}  e6 {[%clk 0:02:59]} 3. Nc3 {[%clk 0:02:59]}  Nf6 {[%clk 0:02:59]} 4. Bg5 {[%clk 0:02:58]}  Be7 {[%clk 0:02:59]} 5. e3 {[%clk 0:02:59]}  c6 {[%clk 0:02:58]} 6. Nf3 {[%clk 0:02:59]}  O-O {[%clk 0:02:58]} 7. Bd3 {[%clk 0:03:00]}  h6 {[%clk 0:02:57]} 8. Bh4 {[%clk 0:02:59]}  dxc4 {[%clk 0:02:45]} 9. Bxc4 {[%clk 0:02:56]}  Nd5 {[%clk 0:02:45]} 10. Bxe7 {[%clk 0:02:56]}  Qxe7 {[%clk 0:02:44]} 11. O-O {[%clk 0:02:56]}  Nd7 {[%clk 0:02:42]} 12. e4 {[%clk 0:02:55]}  Nxc3 {[%clk 0:02:39]} 13. bxc3 {[%clk 0:02:56]}  Nb6 {[%clk 0:02:40]} 14. Bd3 {[%clk 0:02:55]}  Rd8 {[%clk 0:02:37]} 15. Re1 {[%clk 0:02:55]}  Nd7 {[%clk 0:02:33]} 16. e5 {[%clk 0:02:52]}  Nf8 {[%clk 0:02:33]} 17. Qe2 {[%clk 0:02:51]}  b6 {[%clk 0:02:29]} 18. a4 {[%clk 0:02:46]}  c5 {[%clk 0:02:27]} 19. a5 {[%clk 0:02:41]}  Bb7 {[%clk 0:02:25]} 20. Be4 {[%clk 0:02:40]}  Bxe4 {[%clk 0:02:25]} 21. Qxe4 {[%clk 0:02:41]}  bxa5 {[%clk 0:02:04]} 22. Rxa5 {[%clk 0:02:39]}  cxd4 {[%clk 0:02:04]} 23. cxd4 {[%clk 0:02:38]}  Qb4 {[%clk 0:02:03]} 24. Rea1 {[%clk 0:02:38]}  Rdc8 {[%clk 0:01:56]} 25. g3 {[%clk 0:02:38]}  Nd7 {[%clk 0:01:47]} 26. Rxa7 {[%clk 0:02:33]}  Rxa7 {[%clk 0:01:44]} 27. Rxa7 {[%clk 0:02:33]}  Nc5 {[%clk 0:01:44]} 28. Qf4 {[%clk 0:02:27]}  Qb1+ {[%clk 0:01:32]} 29. Kg2 {[%clk 0:02:26]}  Nb7 {[%clk 0:01:24]} 30. Nd2 {[%clk 0:02:21]}  Qb6 {[%clk 0:01:21]} 31. Ra1 {[%clk 0:02:16]}  Qc6+ {[%clk 0:01:20]} 32. Qe4 {[%clk 0:02:15]}  Qxe4+ {[%clk 0:01:14]} 33. Nxe4 {[%clk 0:02:15]}  Nd8 {[%clk 0:01:14]} 34. Nd6 {[%clk 0:02:13]}  Rb8 {[%clk 0:01:14]} 35. Ra7 {[%clk 0:02:11]}  Nc6 {[%clk 0:01:12]} 36. Rxf7 {[%clk 0:02:10]}  Nxd4 {[%clk 0:01:12]} 37. Re7 {[%clk 0:02:06]}  Rd8 {[%clk 0:01:09]} 38. f4 {[%clk 0:02:05]}  Kf8 {[%clk 0:01:09]} 39. Rf7+ {[%clk 0:02:02]}  Kg8 {[%clk 0:01:09]} 40. Rc7 {[%clk 0:02:02]}  Kf8 {[%clk 0:01:04]} 41. Kh3 {[%clk 0:01:56]}  Rb8 {[%clk 0:00:54]} 42. Kg4 {[%clk 0:01:55]}  Rb2 {[%clk 0:00:43]} 43. h4 {[%clk 0:01:48]}  Ne2 {[%clk 0:00:38]} 44. Rc8+ {[%clk 0:01:40]}  Ke7 {[%clk 0:00:37]} 45. Rg8 {[%clk 0:01:41]}  Rb3 {[%clk 0:00:30]} 46. Rxg7+ {[%clk 0:01:40]}  Kf8 {[%clk 0:00:29]} 47. Rf7+ {[%clk 0:01:38]}  Kg8 {[%clk 0:00:29]} 48. Kh5 {[%clk 0:01:37]}  Rxg3 {[%clk 0:00:25]} 49. Rf6 {[%clk 0:01:34]}  Kg7 {[%clk 0:00:21]} 50. Ne4 {[%clk 0:01:19]}  Rg2 {[%clk 0:00:20]} 51. Nc5 {[%clk 0:01:01]}  Rg1 {[%clk 0:00:16]} 52. Nxe6+ {[%clk 0:01:00]}  Kg8 {[%clk 0:00:16]} 53. Kxh6 {[%clk 0:00:57]}  Ng3 {[%clk 0:00:15]} 54. Rf8# {[%clk 0:00:56]} 1-0


[Site "https://www.chess.com"]

[Event "Titled Tuesday Blitz June 28 Early 2022"]
[White "Horak, Martin"]
[Black "Pirvulescu, Ekaterina"]
[WhiteFideId "367095"]
[BlackFideId "13506374"]
[WhiteElo "1997"]
[BlackElo "1740"]
[Result "1-0"]
[Round "02"]
[TimeControl "180+1"]
[Date "2022.06.28"]
[WhiteClock "0:00:11"]
[BlackClock "0:00:02"]

1. e4 {[%clk 0:03:00]}  c5 {[%clk 0:02:52]} 2. Nc3 {[%clk 0:02:59]}  g6 {[%clk 0:02:48]} 3. d4 {[%clk 0:02:58]}  cxd4 {[%clk 0:02:41]} 4. Qxd4 {[%clk 0:02:59]}  Nf6 {[%clk 0:02:41]} 5. Be3 {[%clk 0:03:00]}  Nc6 {[%clk 0:02:41]} 6. Qd2 {[%clk 0:03:00]}  d6 {[%clk 0:02:38]} 7. f3 {[%clk 0:03:00]}  Bg7 {[%clk 0:02:38]} 8. O-O-O {[%clk 0:03:00]}  O-O {[%clk 0:02:37]} 9. Bh6 {[%clk 0:02:59]}  Qa5 {[%clk 0:02:31]} 10. h4 {[%clk 0:02:56]}  Nb4 {[%clk 0:02:08]} 11. a3 {[%clk 0:02:29]}  Nc6 {[%clk 0:02:07]} 12. h5 {[%clk 0:02:28]}  Nxh5 {[%clk 0:01:49]} 13. Bxg7 {[%clk 0:02:26]}  Kxg7 {[%clk 0:01:30]} 14. g4 {[%clk 0:02:25]}  Nf6 {[%clk 0:01:29]} 15. Qh6+ {[%clk 0:02:24]}  Kg8 {[%clk 0:01:29]} 16. Nd5 {[%clk 0:02:24]}  Rd8 {[%clk 0:01:14]} 17. Bc4 {[%clk 0:02:01]}  Ne5 {[%clk 0:00:52]} 18. Bb3 {[%clk 0:01:33]}  Rd7 {[%clk 0:00:32]} 19. Nh3 {[%clk 0:01:12]}  Nxd5 {[%clk 0:00:20]} 20. Rxd5 {[%clk 0:01:11]}  Qb6 {[%clk 0:00:16]} 21. Ng5 {[%clk 0:01:10]}  Qe3+ {[%clk 0:00:15]} 22. Kb1 {[%clk 0:01:11]}  e6 {[%clk 0:00:12]} 23. Qxh7+ {[%clk 0:00:59]}  Kf8 {[%clk 0:00:12]} 24. Qh8+ {[%clk 0:00:52]}  Ke7 {[%clk 0:00:12]} 25. Nh7 {[%clk 0:00:39]}  Rd8 {[%clk 0:00:08]} 26. Qf6+ {[%clk 0:00:34]}  Kd7 {[%clk 0:00:08]} 27. Rxd6+ {[%clk 0:00:24]}  Kxd6 {[%clk 0:00:06]} 28. Rd1+ {[%clk 0:00:21]}  Kc6 {[%clk 0:00:05]} 29. Qxd8 {[%clk 0:00:20]}  Nd7 {[%clk 0:00:04]} 30. Nf8 {[%clk 0:00:14]}  Qe2 {[%clk 0:00:02]} 31. Rxd7 {[%clk 0:00:11]} 1-0


[Site "https://www.chess.com"]

[Event "Titled Tuesday Blitz June 28 Early 2022"]
[White "Jaracz, Pawel"]
[Black "Sevian, Samuel"]
[WhiteFideId "1102222"]
[BlackFideId "2040506"]
[WhiteElo "2459"]
[BlackElo "2692"]
[Result "0-1"]
[Round "02"]
[TimeControl "180+1"]
[Date "2022.06.28"]
[WhiteClock "0:00:07"]
[BlackClock "0:00:52"]

1. d4 {[%clk 0:02:58]}  Nf6 {[%clk 0:02:44]} 2. c4 {[%clk 0:02:58]}  c5 {[%clk 0:02:41]} 3. Nf3 {[%clk 0:02:57]}  cxd4 {[%clk 0:02:39]} 4. Nxd4 {[%clk 0:02:57]}  e5 {[%clk 0:02:40]} 5. Nb5 {[%clk 0:02:56]}  d5 {[%clk 0:02:41]} 6. cxd5 {[%clk 0:02:56]}  Bc5 {[%clk 0:02:41]} 7. N5c3 {[%clk 0:02:56]}  O-O {[%clk 0:02:40]} 8. g3 {[%clk 0:02:52]}  Qe7 {[%clk 0:02:39]} 9. Bg2 {[%clk 0:02:52]}  e4 {[%clk 0:02:39]} 10. O-O {[%clk 0:02:51]}  Bf5 {[%clk 0:02:40]} 11. Na3 {[%clk 0:02:48]}  Rd8 {[%clk 0:02:39]} 12. Nc2 {[%clk 0:02:43]}  Nbd7 {[%clk 0:02:39]} 13. a3 {[%clk 0:02:30]}  Rac8 {[%clk 0:02:38]} 14. Be3 {[%clk 0:02:16]}  Nb6 {[%clk 0:02:34]} 15. Nd4 {[%clk 0:02:10]}  Bg6 {[%clk 0:02:30]} 16. Bh3 {[%clk 0:01:54]}  Ra8 {[%clk 0:02:19]} 17. b4 {[%clk 0:01:51]}  Bd6 {[%clk 0:02:17]} 18. Qb3 {[%clk 0:01:49]}  Be5 {[%clk 0:02:15]} 19. Rad1 {[%clk 0:01:38]}  Nbxd5 {[%clk 0:02:09]} 20. Nxd5 {[%clk 0:01:38]}  Nxd5 {[%clk 0:02:08]} 21. Nf5 {[%clk 0:01:18]}  Bxf5 {[%clk 0:02:08]} 22. Bxf5 {[%clk 0:01:18]}  Nc3 {[%clk 0:02:08]} 23. Rxd8+ {[%clk 0:01:14]}  Rxd8 {[%clk 0:02:09]} 24. Qc4 {[%clk 0:01:09]}  b5 {[%clk 0:02:01]} 25. Qc5 {[%clk 0:01:09]}  Qxc5 {[%clk 0:01:56]} 26. Bxc5 {[%clk 0:00:56]}  g6 {[%clk 0:01:57]} 27. Bh3 {[%clk 0:00:54]}  Nxe2+ {[%clk 0:01:57]} 28. Kh1 {[%clk 0:00:43]}  a6 {[%clk 0:01:58]} 29. Bg2 {[%clk 0:00:31]}  f5 {[%clk 0:01:56]} 30. f3 {[%clk 0:00:31]}  Nc3 {[%clk 0:01:35]} 31. Re1 {[%clk 0:00:25]}  Bd4 {[%clk 0:01:04]} 32. fxe4 {[%clk 0:00:22]}  Bxc5 {[%clk 0:01:04]} 33. bxc5 {[%clk 0:00:23]}  fxe4 {[%clk 0:01:05]} 34. Bxe4 {[%clk 0:00:23]}  Rc8 {[%clk 0:01:05]} 35. Bb7 {[%clk 0:00:21]}  Rxc5 {[%clk 0:01:05]} 36. Bxa6 {[%clk 0:00:21]}  Kf7 {[%clk 0:01:04]} 37. Kg2 {[%clk 0:00:21]}  Kf6 {[%clk 0:01:03]} 38. Bb7 {[%clk 0:00:21]}  Na4 {[%clk 0:01:03]} 39. Re3 {[%clk 0:00:21]}  Rc2+ {[%clk 0:01:03]} 40. Kf3 {[%clk 0:00:20]}  Nc3 {[%clk 0:01:01]} 41. Ba6 {[%clk 0:00:18]}  Nd1 {[%clk 0:00:56]} 42. Re2 {[%clk 0:00:15]}  Rc3+ {[%clk 0:00:56]} 43. Kg2 {[%clk 0:00:15]}  Ne3+ {[%clk 0:00:56]} 44. Kf2 {[%clk 0:00:12]}  Ng4+ {[%clk 0:00:56]} 45. Kg2 {[%clk 0:00:12]}  Rb3 {[%clk 0:00:56]} 46. h3 {[%clk 0:00:10]}  Ne3+ {[%clk 0:00:56]} 47. Kf2 {[%clk 0:00:11]}  Nd1+ {[%clk 0:00:56]} 48. Kg2 {[%clk 0:00:11]}  Ne3+ {[%clk 0:00:54]} 49. Kf2 {[%clk 0:00:11]}  Nf5 {[%clk 0:00:55]} 50. g4 {[%clk 0:00:10]}  Nd6 {[%clk 0:00:54]} 51. Re3 {[%clk 0:00:10]}  Rxe3 {[%clk 0:00:52]} 52. Kxe3 {[%clk 0:00:10]}  Ke5 {[%clk 0:00:52]} 53. h4 {[%clk 0:00:10]}  Kd5 {[%clk 0:00:52]} 54. Kf4 {[%clk 0:00:09]}  h6 {[%clk 0:00:52]} 55. g5 {[%clk 0:00:09]}  h5 {[%clk 0:00:52]} 56. Ke3 {[%clk 0:00:07]}  Kc5 {[%clk 0:00:51]} 57. Kf4 {[%clk 0:00:07]}  Kb6 {[%clk 0:00:51]} 58. Bxb5 {[%clk 0:00:07]}  Kxb5 {[%clk 0:00:52]} 59. Ke5 {[%clk 0:00:07]}  Nf5 {[%clk 0:00:52]} 0-1


[Site "https://www.chess.com"]